fUST/lending_fUST_20251029
["ID","MTS","AMOUNT","RATE_DAILY","PERIOD"]
[392621818,1761753039218,-250.531655,0.0002,7]
[392621819,1761753039228,-151.0,0.0002,7]
[392621820,1761753039238,-151.0,0.0002,7]
[392621821,1761753039248,-151.0,0.0002,7]
[392621822,1761753039258,-151.522759,0.0002,7]
[392621823,1761753039268,-151.0,0.0002,7]
[392621824,1761753039278,-218.982482,0.0002,7]
[392621826,1761753039288,-151.0,0.0002,7]
[392621828,1761753039298,-218.982482,0.0002,7]
[392621830,1761753039307,-218.982482,0.0002,7]
[392621832,1761753039317,-218.982482,0.0002,7]
[392621833,1761753039328,-151.0,0.0002,7]
[392621834,1761753039339,-151.0,0.0002,7]
[392621835,1761753039349,-151.0,0.0002,7]
[392621836,1761753039359,-151.0,0.0002,7]
[392621837,1761753039369,-151.0,0.0002,7]
[392621838,1761753039380,-151.0,0.0002,7]
[392621839,1761753039390,-277.445594,0.0002,7]
[392621840,1761753039400,-159.55169954,0.0002,7]
[392621843,1761753039540,-117.89389446,0.0002,7]
[392621844,1761753039550,-277.445594,0.0002,7]
[392621845,1761753039560,-277.445594,0.0002,7]
[392621846,1761753039571,-254.756086,0.0002,2]
[392621847,1761753039581,-254.756086,0.0002,2]
[392621848,1761753039590,-151.0,0.0002,7]
[392621849,1761753039600,-254.756086,0.0002,2]
[392621850,1761753039609,-254.756086,0.0002,2]
[392621851,1761753039619,-151.0,0.0002,7]
[392621852,1761753039628,-151.0,0.0002,7]
[392621853,1761753039637,-197.346566,0.0002,7]
[392621854,1761753039647,-151.0,0.0002,7]
[392621855,1761753039658,-164.051692,0.0002,7]
[392621856,1761753039667,-151.0,0.0002,7]
[392621857,1761753039677,-151.0,0.0002,7]
[392621858,1761753039686,-151.0,0.0002,7]
[392621859,1761753039695,-151.0,0.0002,7]
[392621861,1761753039704,-1026.418204,0.0002,7]
[392621863,1761753039713,-1026.418204,0.0002,7]
[392621865,1761753039723,-269.45590754,0.0002,7]
[392621887,1761753040100,-545.92410587,0.0002,7]
[392621890,1761753040116,-211.03819059,0.0002,7]
[392621892,1761753040126,-1026.418204,0.0002,7]
[392621894,1761753040135,-151.0,0.0002,7]
[392621896,1761753040144,-399.45345,0.0002,7]
[392621898,1761753040154,-399.45345,0.0002,7]
[392621900,1761753040164,-399.45345,0.0002,7]
[392621902,1761753040174,-1216.547941,0.0002,7]
[392621904,1761753040183,-399.45345,0.0002,7]
[392621906,1761753040193,-1216.547941,0.0002,7]
[392621908,1761753040202,-1216.547941,0.0002,7]
[392621910,1761753040211,-1216.547941,0.0002,7]
[392621912,1761753040221,-266.44077449,0.00020012,2]
[392621914,1761753040230,-155.16880805,0.0002002,2]
[392621916,1761753040239,-500.0,0.00020047,2]
[392621918,1761753040248,-3020.92274008,0.0002024,2]
[392621920,1761753040258,-1000.0,0.00020321,2]
[392621923,1761753040268,-956.98520133,0.00020321,2]
[392621926,1761753040277,-1000.0,0.00020321,2]
[392621928,1761753040286,-187.06423248,0.00020321,2]
[392621931,1761753040296,-1000.0,0.00020321,2]
[392621934,1761753040306,-1000.0,0.00020321,2]
[392621936,1761753040315,-1000.0,0.00020321,2]
[392621938,1761753040326,-1000.0,0.00020321,2]
[392621940,1761753040336,-988.39728908,0.00020321,2]
[392621960,1761753040488,-1000.0,0.00020321,2]
[392621963,1761753040530,-1000.0,0.00020321,2]
[392621965,1761753040542,-1000.0,0.00020321,2]
[392621967,1761753040554,-500.0,0.00020321,2]
[392621969,1761753040563,-151.0,0.00020321,7]
[392621971,1761753040572,-213.683836,0.00020321,7]
[392621973,1761753040582,-218.982482,0.00020321,7]
[392621975,1761753040591,-218.982482,0.00020321,7]
[392621977,1761753040600,-218.982482,0.00020321,7]
[392621979,1761753040609,-218.982482,0.00020321,7]
[392621981,1761753040619,-151.0,0.00020321,7]
[392621983,1761753040628,-151.0,0.00020321,7]
[392621985,1761753040637,-242.14512,0.00020321,7]
[392621987,1761753040648,-153.871084,0.00020321,7]
[392621989,1761753040657,-151.0,0.00020321,7]
[392621991,1761753040669,-151.0,0.00020364,7]
[392621993,1761753040679,-151.0,0.00020416,7]
[392621995,1761753040688,-151.0,0.00020416,7]
[392621997,1761753040698,-151.0,0.00020416,7]
[392621998,1761753040707,-1026.418204,0.00020416,7]
[392622000,1761753040716,-1026.418204,0.00020416,7]
[392622003,1761753040726,-1026.418204,0.00020416,7]
[392622005,1761753040735,-1026.418204,0.00020416,7]
[392622007,1761753040744,-221.245024,0.00020416,7]
[392622009,1761753040754,-399.45345,0.00020416,7]
[392622010,1761753040764,-399.45345,0.00020416,7]
[392622012,1761753040773,-399.45345,0.00020416,7]
[392622014,1761753040782,-1216.547941,0.00020416,7]
[392622016,1761753040791,-399.45345,0.00020416,7]
[392622017,1761753040800,-1216.547941,0.00020416,7]
[392622019,1761753040810,-1216.547941,0.00020416,7]
[392622021,1761753040822,-1216.547941,0.00020416,7]
[392622023,1761753040831,-995.69691005,0.00020421,2]
[392622025,1761753040841,-151.0,0.00020421,7]
[392622027,1761753040850,-151.0,0.00020421,7]
[392622029,1761753040860,-151.0,0.00020421,7]
[392622031,1761753040870,-151.0,0.00020421,7]
[392622033,1761753040879,-151.0,0.00020421,7]
[392622035,1761753040888,-154.919966,0.00020421,7]
[392622037,1761753040897,-151.0,0.00020421,7]
[392622039,1761753040909,-153.8174,0.00020421,7]
[392622041,1761753040918,-345.523866,0.00020421,7]
[392622043,1761753040928,-345.523866,0.00020421,7]
[392622044,1761753040937,-345.523866,0.00020421,7]
[392622045,1761753040948,-345.523866,0.00020421,7]
[392622046,1761753040957,-151.0,0.00020421,7]
[392622048,1761753040968,-151.0,0.00020421,7]
[392622050,1761753040977,-151.0,0.00020421,7]
[392622052,1761753040987,-151.0,0.00020421,7]
[392622054,1761753040997,-277.445594,0.00020421,7]
[392622056,1761753041006,-277.445594,0.00020421,7]
[392622058,1761753041015,-277.445594,0.00020421,7]
[392622060,1761753041025,-277.445594,0.00020421,7]
[392622062,1761753041034,-2149.89,0.0002046,2]
[392622063,1761753041043,-254.756086,0.0002046,2]
[392622066,1761753041053,-254.756086,0.0002046,2]
[392622068,1761753041062,-151.0,0.0002046,7]
[392622070,1761753041071,-254.756086,0.0002046,2]
[392622071,1761753041081,-254.756086,0.0002046,2]
[392622073,1761753041090,-151.0,0.0002046,7]
[392622076,1761753041101,-151.0,0.0002046,7]
[392622078,1761753041110,-151.0,0.0002046,7]
[392622080,1761753041119,-300.0,0.00020512,2]
[392622082,1761753041128,-300.0,0.00020512,2]
[392622084,1761753041137,-300.0,0.00020512,2]
[392622086,1761753041146,-300.0,0.00020512,2]
[392622088,1761753041156,-300.0,0.00020512,2]
[392622090,1761753041165,-300.0,0.00020512,2]
[392622092,1761753041174,-300.0,0.00020512,2]
[392622094,1761753041183,-300.0,0.00020512,2]
[392622095,1761753041193,-300.0,0.00020512,2]
[392622098,1761753041203,-300.0,0.00020512,2]
[392622099,1761753041212,-300.0,0.00020512,2]
[392622101,1761753041221,-300.0,0.00020512,2]
[392622103,1761753041231,-300.0,0.00020512,2]
[392622105,1761753041241,-300.0,0.00020512,2]
[392622107,1761753041251,-300.0,0.00020512,2]
[392622109,1761753041260,-176.490038,0.00020512,7]
[392622111,1761753041270,-156.251383,0.00020512,7]
[392622113,1761753041279,-156.251383,0.00020512,7]
[392622115,1761753041289,-156.251383,0.00020512,7]
[392622117,1761753041298,-156.251383,0.00020512,7]
[392622119,1761753041307,-591.0274796,0.00020545,2]
[392622121,1761753041317,-151.0,0.00020548,7]
[392622123,1761753041328,-3020.92274008,0.00020554,2]
[392622125,1761753041338,-500.0,0.00020595,2]
[392622127,1761753041347,-1206.86480533,0.0002079,2]
[392622129,1761753041356,-892.5125948,0.00020798,2]
[392622131,1761753041366,-157.087597,0.00020868,7]
[392622133,1761753041376,-218.982482,0.00020868,7]
[392622135,1761753041385,-218.982482,0.00020868,7]
[392622137,1761753041395,-218.982482,0.00020868,7]
[392622139,1761753041404,-218.982482,0.00020868,7]
[392622141,1761753041413,-151.0,0.00020868,7]
[392622143,1761753041423,-151.0,0.00020868,7]
[392622145,1761753041432,-3020.92274008,0.00020868,2]
[392622147,1761753041445,-151.0,0.00020868,7]
[392622149,1761753041454,-151.0,0.00020868,7]
[392622151,1761753041464,-151.0,0.00020868,7]
[392622153,1761753041477,-219.121692,0.00020868,7]
[392622155,1761753041486,-1026.418204,0.00020868,7]
[392622157,1761753041495,-1026.418204,0.00020868,7]
[392622159,1761753041504,-1026.418204,0.00020868,7]
[392622161,1761753041515,-1026.418204,0.00020868,7]
[392622162,1761753041524,-399.45345,0.00020868,7]
[392622164,1761753041534,-399.45345,0.00020868,7]
[392622167,1761753041545,-399.45345,0.00020868,7]
[392622169,1761753041554,-399.45345,0.00020868,7]
[392622171,1761753041563,-1216.547941,0.00020868,7]
[392622173,1761753041575,-1216.547941,0.00020868,7]
[392622175,1761753041585,-1216.547941,0.00020868,7]
[392622176,1761753041597,-1216.547941,0.00020868,7]
[392622178,1761753041606,-151.0,0.00020868,7]
[392622180,1761753041615,-151.0,0.00020868,7]
[392622182,1761753041625,-1500.0,0.00020868,2]
[392622184,1761753041634,-1500.0,0.00020868,2]
[392622186,1761753041643,-1512.25097809,0.00020868,2]
[392622188,1761753041652,-1500.0,0.00020868,2]
[392622190,1761753041661,-1500.0,0.00020868,2]
[392622192,1761753041670,-1500.0,0.00020868,2]
[392622194,1761753041679,-1500.0,0.00020868,2]
[392622196,1761753041688,-1228.70067659,0.00020868,2]
[392622198,1761753041697,-500.0,0.00020868,2]
[392622200,1761753041707,-151.0,0.00020879,2]
[392622202,1761753041716,-331.0,0.00020879,2]
[392622204,1761753041725,-151.0,0.00020879,2]
[392622206,1761753041735,-331.0,0.00020879,2]
[392622208,1761753041744,-151.0,0.00020879,2]
[392622210,1761753041753,-331.0,0.00020879,2]
[392622212,1761753041762,-189.15012302,0.00020879,2]
[392622214,1761753041773,-331.0,0.00020879,2]
[392622216,1761753041782,-331.0,0.00020879,2]
[392622218,1761753041792,-331.0,0.00020879,2]
[392622220,1761753041801,-331.0,0.00020879,2]
[392622222,1761753041810,-331.0,0.00020879,2]
[392622224,1761753041819,-331.0,0.00020879,2]
[392622226,1761753041831,-331.0,0.00020879,2]
[392622228,1761753041840,-331.0,0.00020879,2]
[392622230,1761753041849,-331.0,0.00020879,2]
[392622232,1761753041859,-331.0,0.00020879,2]
[392622234,1761753041870,-331.0,0.00020879,2]
[392622236,1761753041879,-331.0,0.00020879,2]
[392622238,1761753041888,-156.28196455,0.00020879,2]
[392622240,1761753041898,-600.0,0.00020921,2]
[392622242,1761753041907,-162.13172,0.00020964,7]
[392622244,1761753041916,-277.445594,0.00020964,7]
[392622246,1761753041925,-277.445594,0.00020964,7]
[392622248,1761753041935,-277.445594,0.00020964,7]
[392622250,1761753041954,-277.4456,0.00020964,7]
[392622252,1761753041975,-151.0,0.00020968,7]
[392622254,1761753041984,-152.981059,0.00020968,7]
[392622256,1761753041995,-200.0,0.00020968,3]
[392622258,1761753042004,-200.0,0.00020968,3]
[392622260,1761753042014,-200.0,0.00020968,3]
[392622262,1761753042023,-200.0,0.00020968,3]
[392622264,1761753042033,-200.0,0.00020968,3]
[392622266,1761753042042,-345.523866,0.00020968,7]
[392622268,1761753042051,-345.523866,0.00020968,7]
[392622270,1761753042061,-345.523866,0.00020968,7]
[392622272,1761753042070,-345.523866,0.00020968,7]
[392622274,1761753042081,-243.86536,0.00020968,7]
[392622276,1761753042091,-151.0,0.00020968,7]
[392622278,1761753042101,-151.0,0.00020968,7]
[392622280,1761753042110,-254.756086,0.00020968,2]
[392622282,1761753042119,-254.756086,0.00020968,2]
[392622284,1761753042128,-151.0,0.00020968,7]
[392622286,1761753042138,-254.756086,0.00020968,2]
[392622288,1761753042147,-254.756086,0.00020968,2]
[392622290,1761753042156,-151.0,0.00020968,7]
[392622292,1761753042165,-151.0,0.00020968,7]
[392622294,1761753042174,-153.184575,0.00020968,7]
[392622296,1761753042184,-838.95,0.00020976,30]
[392622298,1761753042194,-629.44,0.00021072,3]
[392622300,1761753042205,-314.72,0.00021072,3]
[392622302,1761753042214,-500.0,0.00021142,2]
[392622304,1761753042223,-168.639721,0.00021164,7]
[392622305,1761753042232,-3176.0,0.00021164,2]
[392622306,1761753042241,-412.0,0.00021164,2]
[392622307,1761753042251,-633.0,0.00021164,2]
[392622308,1761753042260,-2167.0,0.00021164,2]
[392622309,1761753042270,-984.0,0.00021164,2]
[392622310,1761753042279,-420.0,0.00021269,2]
[392622311,1761753042288,-156.251383,0.00021314,7]
[392622312,1761753042297,-156.251383,0.00021314,7]
[392622313,1761753042307,-156.251383,0.00021314,7]
[392622314,1761753042316,-156.251383,0.00021314,7]
[392622315,1761753042326,-218.982482,0.00021314,7]
[392622316,1761753042335,-218.982482,0.00021314,7]
[392622317,1761753042344,-218.982482,0.00021314,7]
[392622319,1761753042354,-218.982482,0.00021314,7]
[392622320,1761753042363,-151.0,0.00021314,7]
[392622321,1761753042372,-151.0,0.00021314,7]
[392622323,1761753042382,-199.1464782,0.00021327,2]
[392622326,1761753042392,-800.0,0.00021356,2]
[392622328,1761753042402,-158.163078,0.0002136,4]
[392622330,1761753042412,-158.163078,0.00021364,4]
[392622331,1761753042421,-185.0,0.00021372,2]
[392622334,1761753042432,-150.0,0.000214,2]
[392622336,1761753042442,-197.91655794,0.00021408,2]
[392622339,1761753042451,-151.0,0.00021416,7]
[392622343,1761753042467,-153.371539,0.00021416,7]
[392622346,1761753042477,-1026.418204,0.00021416,7]
[392622347,1761753042487,-1026.418204,0.00021416,7]
[392622352,1761753042498,-1026.418204,0.00021416,7]
[392622353,1761753042509,-1026.41819764,0.00021416,7]
[392622356,1761753042519,-399.45345,0.00021416,7]
[392622358,1761753042529,-399.45345,0.00021416,7]
[392622360,1761753042539,-399.45345,0.00021416,7]
[392622362,1761753042551,-399.45345,0.00021416,7]
[392622365,1761753042560,-1216.547941,0.00021416,7]
[392622366,1761753042570,-1216.547941,0.00021416,7]
[392622369,1761753042581,-1216.547941,0.00021416,7]
[392622370,1761753042591,-1216.547941,0.00021416,7]
[392622372,1761753042600,-2000.0,0.00021416,2]
[392622375,1761753042610,-2000.0,0.00021416,2]
[392622377,1761753042619,-2000.0,0.00021416,2]
[392622379,1761753042629,-2000.0,0.00021416,2]
[392622381,1761753042638,-2000.0,0.00021416,2]
[392622383,1761753042648,-2000.0,0.00021416,2]
[392622385,1761753042658,-500.0,0.00021416,2]
[392622387,1761753042667,-185.0,0.00021435,2]
[392622390,1761753042683,-185.0,0.00021437,2]
[392622392,1761753042693,-500.0,0.000215,2]
[392622394,1761753042702,-151.0,0.00021516,7]
[392622395,1761753042712,-345.523866,0.00021516,7]
[392622397,1761753042722,-345.523866,0.00021516,7]
[392622399,1761753042731,-345.523866,0.00021516,7]
[392622401,1761753042740,-345.523866,0.00021516,7]
[392622403,1761753042750,-151.0,0.00021516,7]
[392622405,1761753042759,-151.0,0.00021516,7]
[392622407,1761753042769,-150.106,0.00021569,2]
[392622409,1761753042778,-150.171,0.00021569,2]
[392622411,1761753042787,-403.72361849,0.00021585,7]
[392622413,1761753042796,-160.0,0.0002159,2]
[392622415,1761753042805,-1480.30463881,0.00021603,2]
[392622417,1761753042814,-185.0,0.00021608,2]
[392622419,1761753042824,-158.163078,0.0002162,10]
[392622421,1761753042835,-500.0,0.0002165,2]
[392622423,1761753042844,-500.79824525,0.0002165,2]
[392622425,1761753042853,-500.0,0.0002165,2]
[392622427,1761753042863,-500.0,0.0002165,2]
[392622429,1761753042872,-500.93356078,0.0002165,2]
[392622431,1761753042881,-500.0,0.0002165,2]
[392622433,1761753042890,-500.0,0.0002165,2]
[392622435,1761753042899,-500.0,0.0002165,2]
[392622437,1761753042907,-202.42650273,0.0002165,2]
[392622439,1761753042916,-500.0,0.0002165,2]
[392622441,1761753042926,-500.0,0.0002165,2]
[392622443,1761753042935,-500.0,0.0002165,2]
[392622445,1761753042945,-500.0,0.0002165,2]
[392622447,1761753042954,-500.0,0.0002165,2]
[392622449,1761753042963,-500.0,0.0002165,2]
[392622451,1761753042972,-500.0,0.0002165,2]
[392622453,1761753042982,-516.66608201,0.0002165,2]
[392622455,1761753042991,-500.0,0.0002165,2]
[392622457,1761753043000,-500.0,0.0002165,2]
[392622459,1761753043010,-500.0,0.0002165,2]
[392622461,1761753043020,-500.0,0.0002165,2]
[392622462,1761753043029,-451.8126859,0.0002165,2]
[392622464,1761753043039,-500.0,0.0002165,2]
[392622466,1761753043047,-500.0,0.0002165,2]
[392622468,1761753043057,-500.0,0.0002165,2]
[392622470,1761753043067,-247.43547058,0.0002165,2]
[392622472,1761753043078,-500.0,0.0002165,2]
[392622474,1761753043088,-500.0,0.0002165,2]
[392622476,1761753043097,-500.01408226,0.0002165,2]
[392622478,1761753043106,-217.02872352,0.0002165,2]
[392622480,1761753043117,-502.05532812,0.0002165,2]
[392622482,1761753043127,-500.0,0.0002165,2]
[392622484,1761753043136,-500.64243665,0.0002165,2]
[392622486,1761753043145,-6000.0,0.00021656,2]
[392622488,1761753043155,-254.756086,0.00021656,2]
[392622490,1761753043164,-254.756086,0.00021656,2]
[392622492,1761753043174,-151.0,0.00021656,7]
[392622494,1761753043184,-254.756086,0.00021656,2]
[392622496,1761753043193,-254.756081,0.00021656,2]
[392622498,1761753043202,-151.0,0.00021656,7]
[392622500,1761753043212,-299.230385,0.00021656,7]
[392622502,1761753043221,-403.72361849,0.00021658,2]
[392622504,1761753043230,-160.0,0.00021658,2]
[392622506,1761753043240,-160.0,0.00021658,2]
[392622508,1761753043248,-500.0,0.00021678,2]
[392622510,1761753043258,-500.0,0.0002169,2]
[392622512,1761753043267,-2000.0,0.00021744,7]
[392622514,1761753043276,-218.982482,0.00021744,7]
[392622516,1761753043285,-218.982482,0.00021744,7]
[392622518,1761753043295,-218.982482,0.00021744,7]
[392622519,1761753043304,-218.982484,0.00021744,7]
[392622520,1761753043314,-151.0,0.00021744,7]
[392622521,1761753043326,-151.0,0.00021744,7]
[392622522,1761753043335,-257.56037936,0.00021744,2]
[392622524,1761753043345,-500.0,0.00021744,2]
[392622525,1761753043354,-185.0,0.00021746,2]
[392622526,1761753043363,-185.0,0.00021775,2]
[392622527,1761753043373,-4002.56733869,0.0002178,2]
[392622528,1761753043382,-151.0,0.00021791,7]
[392622529,1761753043392,-151.0,0.00021791,7]
[392622530,1761753043400,-158.163078,0.00021795,2]
[392622531,1761753043409,-403.72361849,0.00021817,3]
[392622532,1761753043419,-151.0,0.00021829,7]
[392622533,1761753043428,-345.523866,0.00021829,7]
[392622534,1761753043438,-345.523866,0.00021829,7]
[392622535,1761753043448,-345.523866,0.00021829,7]
[392622536,1761753043460,-345.523875,0.00021829,7]
[392622537,1761753043470,-489.39,0.00021882,2]
[392622538,1761753043479,-158.163078,0.00021901,2]
[392622539,1761753043488,-1000.03438457,0.00021917,2]
[392622540,1761753043497,-151.0,0.00021918,7]
[392622541,1761753043508,-151.0,0.00021918,7]
[392622542,1761753043518,-151.0,0.00021918,7]
[392622543,1761753043527,-151.0,0.00021918,7]
[392622544,1761753043536,-151.0,0.00021918,7]
[392622545,1761753043546,-151.0,0.00021918,7]
[392622546,1761753043557,-217.318418,0.00021918,7]
[392622547,1761753043566,-500.0,0.00021918,2]
[392622548,1761753043576,-500.0,0.00021918,2]
[392622549,1761753043585,-152.0,0.00021918,2]
[392622550,1761753043595,-152.0,0.00021918,2]
[392622551,1761753043605,-152.0,0.00021918,2]
[392622552,1761753043614,-152.0,0.00021918,2]
[392622553,1761753043624,-152.0,0.00021918,2]
[392622554,1761753043633,-152.0,0.00021918,2]
[392622555,1761753043645,-152.0,0.00021918,2]
[392622556,1761753043655,-152.0,0.00021918,2]
[392622557,1761753043665,-152.0,0.00021918,2]
[392622558,1761753043674,-152.0,0.00021918,2]
[392622559,1761753043684,-152.0,0.00021918,2]
[392622560,1761753043693,-152.0,0.00021918,2]
[392622561,1761753043703,-152.0,0.00021918,2]
[392622562,1761753043712,-152.0,0.00021918,2]
[392622564,1761753043722,-152.0,0.00021918,2]
[392622566,1761753043731,-152.0,0.00021918,2]
[392622568,1761753043740,-152.0,0.00021918,2]
[392622570,1761753043749,-152.0,0.00021918,2]
[392622572,1761753043758,-152.0,0.00021918,2]
[392622573,1761753043767,-152.0,0.00021918,2]
[392622575,1761753043776,-152.0,0.00021918,2]
[392622577,1761753043786,-152.0,0.00021918,2]
[392622579,1761753043796,-152.0,0.00021918,2]
[392622581,1761753043805,-152.0,0.00021918,2]
[392622583,1761753043815,-152.0,0.00021918,2]
[392622585,1761753043825,-2500.0,0.00021964,2]
[392622587,1761753043834,-2500.0,0.00021964,2]
[392622589,1761753043844,-2500.0,0.00021964,2]
[392622591,1761753043854,-2500.0,0.00021964,2]
[392622593,1761753043863,-2500.0,0.00021964,2]
[392622595,1761753043872,-493.01492699,0.00021964,2]
[392622597,1761753043882,-156.251383,0.00021973,7]
[392622599,1761753043892,-156.251383,0.00021973,7]
[392622601,1761753043901,-156.251383,0.00021973,7]
[392622603,1761753043911,-156.251383,0.00021973,7]
[392622605,1761753043921,-515.72551691,0.00022,5]
[392622607,1761753043931,-203.19034112,0.00022,2]
[392622609,1761753043941,-2168.1513137,0.00022037,2]
[392622611,1761753043951,-158.163078,0.0002208,10]
[392622613,1761753043960,-260.0,0.00022138,2]
[392622615,1761753043970,-158.163078,0.00022156,3]
[392622617,1761753043980,-284.902,0.00022187,2]
[392622619,1761753043990,-185.0,0.00022194,2]
[392622621,1761753043999,-626.45930008,0.00022198,2]
[392622623,1761753044008,-1000.0,0.00022198,2]
[392622625,1761753044018,-1000.94858803,0.00022198,2]
[392622627,1761753044028,-501.23801103,0.00022198,2]
[392622629,1761753044037,-1000.0,0.00022198,2]
[392622631,1761753044047,-1000.74940875,0.00022198,2]
[392622633,1761753044056,-1000.0,0.00022198,2]
[392622635,1761753044066,-1000.0,0.00022198,2]
[392622637,1761753044077,-1000.92677704,0.00022198,2]
[392622639,1761753044087,-1000.98220529,0.00022198,2]
[392622641,1761753044096,-1000.0,0.00022198,2]
[392622643,1761753044106,-1000.0,0.00022198,2]
[392622645,1761753044115,-1000.0,0.00022198,2]
[392622647,1761753044124,-1000.82727867,0.00022198,2]
[392622649,1761753044134,-1000.0,0.00022198,2]
[392622651,1761753044143,-654.75692793,0.00022198,2]
[392622653,1761753044153,-183.62884848,0.00022198,2]
[392622655,1761753044162,-1000.0,0.00022198,2]
[392622657,1761753044172,-613.28228579,0.00022198,2]
[392622659,1761753044181,-2216.48943936,0.0002222,2]
[392622661,1761753044191,-500.0,0.00022226,2]
[392622663,1761753044200,-185.0,0.00022234,2]
[392622665,1761753044210,-156.251383,0.00022287,7]
[392622667,1761753044219,-156.251383,0.00022287,7]
[392622669,1761753044229,-156.251383,0.00022287,7]
[392622671,1761753044238,-156.251375,0.00022287,7]
[392622673,1761753044247,-500.98228793,0.00022292,2]
[392622675,1761753044257,-185.0,0.0002235,2]
[392622677,1761753044266,-127.38404654,0.00022356,2]
[392622681,1761753044365,-367.08091844,0.00019773,2]
[392622682,1761753044376,-132.91908156,0.00019773,2]
[392622683,1761753044385,-381.86825272,0.00020321,2]
[392622700,1761753044588,759.447494,0.00013699,2]
[392622709,1761753044664,-417.07980261,0.00019701,2]
[392622711,1761753044674,-452.50169175,0.00019701,2]
[392622713,1761753044683,-500.0,0.00019701,2]
[392622715,1761753044692,-1179.16539461,0.00019713,2]
[392622717,1761753044702,-500.0,0.00019773,2]
[392622719,1761753044711,-759.447494,0.00020187,2]
[392622721,1761753044721,-618.13174728,0.00020321,2]
[392622723,1761753044731,-500.0,0.00020321,2]
[392622725,1761753044740,-1500.0,0.00020868,2]
[392622727,1761753044749,-2000.0,0.00021416,2]
[392622729,1761753044759,-500.0,0.0002165,2]
[392622731,1761753044768,-500.0,0.0002165,2]
[392622733,1761753044778,-500.0,0.0002165,2]
[392622735,1761753044787,-500.0,0.0002165,2]
[392622737,1761753044796,-500.0,0.0002165,2]
[392622739,1761753044805,-500.0,0.0002165,2]
[392622741,1761753044814,-500.0,0.00021964,2]
[392622743,1761753044824,-1000.0,0.00022198,2]
[392622745,1761753044834,-1000.80056805,0.00022198,2]
[392622747,1761753044844,-1000.0,0.00022198,2]
[392622749,1761753044854,-1001.28867327,0.00022198,2]
[392622752,1761753044863,-1000.77818183,0.00022198,2]
[392622754,1761753044873,-4872.61595346,0.00022356,2]
[392622755,1761753044882,-150.0,0.000224,10]
[392622756,1761753044892,-168.83301464,0.00022451,2]
[392622757,1761753044903,-151.0,0.00022451,7]
[392622758,1761753044913,-800.0,0.00022452,2]
[392622759,1761753044923,-1035.421393,0.0002246,5]
[392622760,1761753044932,-185.0,0.00022471,2]
[392622761,1761753044942,-1000.0,0.0002248,5]
[392622762,1761753044952,-158.163078,0.00022482,20]
[392622763,1761753044961,-1000.0,0.000225,5]
[392622764,1761753044970,-1000.0,0.000225,2]
[392622765,1761753044980,-1000.0,0.000225,2]
[392622766,1761753044989,-1000.0,0.000225,2]
[392622767,1761753044998,-1000.0,0.000225,2]
[392622768,1761753045007,-1000.0,0.000225,2]
[392622769,1761753045017,-1000.0,0.000225,2]
[392622770,1761753045027,-1000.0,0.000225,2]
[392622771,1761753045036,-1000.0,0.000225,2]
[392622772,1761753045045,-1000.0,0.000225,2]
[392622773,1761753045055,-1000.0,0.000225,2]
[392622774,1761753045065,-431.314325,0.000225,2]
[392622775,1761753045075,-3000.0,0.00022512,2]